fUSD/lending_fUSD_20260606
["ID","MTS","AMOUNT","RATE_DAILY","PERIOD"]
[424288578,1780753844000,-1092.54734895,0.00018335,2]
[424288581,1780753844000,-151.0,0.00018343,2]
[424288585,1780753844000,-1151.34550738,0.000184,2]
[424288586,1780753844000,-1878.97977684,0.000184,2]
[424288584,1780753844000,-151.0,0.00018398,2]
[424288583,1780753844000,-7216.66169591,0.00018398,2]
[424288587,1780753844000,-1292.16484347,0.000184,2]
[424288582,1780753844000,-801.85129954,0.00018398,2]
[424288533,1780753844000,-152.0,0.00018178,2]
[424288562,1780753844000,-151.0,0.00018178,2]
[424288561,1780753844000,-500.0,0.00018178,2]
[424288572,1780753844000,-151.0,0.00018233,2]
[424288560,1780753844000,-151.0,0.00018178,2]
[424288529,1780753844000,-151.0,0.00018178,2]
[424288559,1780753844000,-151.0,0.00018178,2]
[424288528,1780753844000,-152.0,0.00018178,2]
[424288531,1780753844000,-500.0,0.00018178,2]
[424288532,1780753844000,-721.12765534,0.00018178,2]
[424288535,1780753844000,-9552.16786547,0.00018178,2]
[424288539,1780753844000,-151.0,0.00018178,2]
[424288542,1780753844000,-151.0,0.00018178,2]
[424288543,1780753844000,-500.0,0.00018178,2]
[424288544,1780753844000,-151.0,0.00018178,2]
[424288551,1780753844000,-152.0,0.00018178,2]
[424288540,1780753844000,-151.0,0.00018178,2]
[424288552,1780753844000,-151.0,0.00018178,2]
[424288541,1780753844000,-152.0,0.00018178,2]
[424288546,1780753844000,-500.0,0.00018178,2]
[424288558,1780753844000,-500.0,0.00018178,2]
[424288553,1780753844000,-151.0,0.00018178,2]
[424288557,1780753844000,-151.0,0.00018178,2]
[424288555,1780753844000,-152.0,0.00018178,2]
[424288554,1780753844000,-500.0,0.00018178,2]
[424288556,1780753844000,-151.0,0.00018178,2]
[424288550,1780753844000,-500.0,0.00018178,2]
[424288548,1780753844000,-151.0,0.00018178,2]
[424288547,1780753844000,-152.0,0.00018178,2]
[424288545,1780753844000,-151.0,0.00018178,2]
[424288549,1780753844000,-151.0,0.00018178,2]
[424288630,1780753845000,-217.15233878,0.00018726,2]
[424288623,1780753845000,-217.15233878,0.00018726,2]
[424288631,1780753845000,-200.0,0.00018726,2]
[424288624,1780753845000,-181.08010149,0.00018726,2]
[424288625,1780753845000,-151.0,0.00018726,2]
[424288628,1780753845000,-719.04747942,0.00018726,2]
[424288620,1780753845000,-217.15233878,0.00018726,2]
[424288629,1780753845000,-500.0,0.00018726,2]
[424288617,1780753845000,-1292.16484347,0.000187,2]
[424288622,1780753845000,-2157.14243826,0.00018726,2]
[424288619,1780753845000,-200.0,0.00018726,2]
[424288632,1780753845000,-9905.59807649,0.00018726,2]
[424288621,1780753845000,-151.0,0.00018726,2]
[424288633,1780753845000,-997.16350561,0.00018728,2]
[424288654,1780753845000,-839.06718577,0.00019178,2]
[424288635,1780753845000,-151.0,0.00018728,2]
[424288642,1780753845000,-1000.33,0.00018904,2]
[424288634,1780753845000,-5451.74277262,0.00018728,2]
[424288638,1780753845000,-1242.38,0.000188,2]
[424288637,1780753845000,-279.78,0.000188,8]
[424288636,1780753845000,-1860.41,0.00018791,2]
[424288639,1780753845000,-1151.34550738,0.000189,2]
[424288640,1780753845000,-1878.97977684,0.000189,2]
[424288655,1780753845000,-20453.62,0.00019178,2]
[424288653,1780753845000,-500.0,0.00019163,2]
[424288645,1780753845000,-700.0,0.0001907,2]
[424288649,1780753845000,-1358.0,0.00019129,2]
[424288627,1780753845000,-200.0,0.00018726,2]
[424288641,1780753845000,-1292.16484347,0.000189,2]
[424288626,1780753845000,-1481.2378076,0.00018726,2]
[424288593,1780753845000,-831.51979762,0.00018453,2]
[424288612,1780753845000,-961.58486558,0.00018673,2]
[424288588,1780753845000,-4204.8,0.0001841,2]
[424288589,1780753845000,-500.0,0.00018448,2]
[424288590,1780753845000,-505.25,0.00018453,2]
[424288592,1780753845000,-624.42,0.00018453,2]
[424288595,1780753845000,-151.0,0.00018453,2]
[424288601,1780753845000,-151.0,0.00018508,2]
[424288594,1780753845000,-7483.67817866,0.00018453,2]
[424288591,1780753845000,-818.87,0.00018453,2]
[424288647,1780753845000,-1878.97977684,0.000191,2]
[424288600,1780753845000,-7760.57427127,0.00018508,2]
[424288599,1780753845000,-862.28603014,0.00018508,2]
[424288602,1780753845000,-689.76,0.00018562,2]
[424288596,1780753845000,-1151.34550738,0.000185,2]
[424288618,1780753845000,-290.26104002,0.00018726,2]
[424288598,1780753845000,-1292.16484347,0.000185,2]
[424288603,1780753845000,-552.93,0.00018562,2]
[424288605,1780753845000,-8047.71551931,0.00018563,2]
[424288606,1780753845000,-151.0,0.00018563,2]
[424288607,1780753845000,-167.0,0.00018578,2]
[424288613,1780753845000,-8654.26379028,0.00018673,2]
[424288609,1780753845000,-8345.48099352,0.00018618,2]
[424288610,1780753845000,-151.0,0.00018618,2]
[424288608,1780753845000,-927.27566594,0.00018618,2]
[424288615,1780753845000,-1151.34550738,0.000187,2]
[424288611,1780753845000,-169.60044375,0.00018647,2]
[424288614,1780753845000,-151.0,0.00018673,2]
[424288616,1780753845000,-1878.97977684,0.000187,2]
[424288604,1780753845000,-894.19061325,0.00018563,2]
[424288597,1780753845000,-1878.97977684,0.000185,2]
[424288648,1780753845000,-1292.16484347,0.000191,2]
[424288705,1780753845000,-500.0,0.00019822,2]
[424288650,1780753845000,-1274.0,0.00019129,2]
[424288690,1780753845000,-179.83494619,0.00019658,3]
[424288689,1780753845000,-500.0,0.00019591,2]
[424288694,1780753845000,-312.13772435,0.00019822,2]
[424288687,1780753845000,-160.0,0.00019547,2]
[424288684,1780753845000,-500.0,0.00019539,2]
[424288685,1780753845000,-156.587,0.00019547,2]
[424288693,1780753845000,-1292.16484347,0.000197,2]
[424288691,1780753845000,-1151.34550738,0.000197,2]
[424288692,1780753845000,-1878.97977684,0.000197,2]
[424288696,1780753845000,-233.5188934,0.00019822,2]
[424288698,1780753845000,-2319.72410669,0.00019822,2]
[424288695,1780753845000,-200.0,0.00019822,2]
[424288697,1780753845000,-151.0,0.00019822,2]
[424288688,1780753845000,-2000.0,0.00019591,2]
[424288699,1780753845000,-233.5188934,0.00019822,2]
[424288701,1780753845000,-151.0,0.00019822,2]
[424288702,1780753845000,-1592.87721992,0.00019822,2]
[424288704,1780753845000,-200.0,0.00019822,2]
[424288703,1780753845000,-773.24136889,0.00019822,2]
[424288706,1780753845000,-233.5188934,0.00019822,2]
[424288707,1780753845000,-200.0,0.00019822,2]
[424288710,1780753845000,-205.0,0.0002,2]
[424288708,1780753845000,-10652.17309792,0.00019822,2]
[424288709,1780753845000,-2365.0,0.00019829,2]
[424288712,1780753845000,-455.0,0.0002,2]
[424288713,1780753845000,-2857.0,0.0002,2]
[424288643,1780753845000,-500.0,0.00018994,2]
[424288714,1780753845000,-2221.0,0.0002,2]
[424288700,1780753845000,-194.72792766,0.00019822,2]
[424288686,1780753845000,-217.15233878,0.00019547,2]
[424288711,1780753845000,-781.0,0.0002,2]
[424288679,1780753845000,-164.0,0.00019487,2]
[424288683,1780753845000,-164.0,0.00019538,2]
[424288646,1780753845000,-1151.34550738,0.000191,2]
[424288651,1780753845000,-1227.0,0.00019129,2]
[424288652,1780753845000,-150.0,0.00019129,2]
[424288656,1780753845000,-209.6698924,0.00019273,3]
[424288658,1780753845000,-200.0,0.00019274,2]
[424288663,1780753845000,-225.18697532,0.00019274,2]
[424288657,1780753845000,-301.0006985,0.00019274,2]
[424288659,1780753845000,-225.18697532,0.00019274,2]
[424288664,1780753845000,-187.78006524,0.00019274,2]
[424288670,1780753845000,-500.0,0.00019274,2]
[424288661,1780753845000,-151.0,0.00019274,2]
[424288665,1780753845000,-151.0,0.00019274,2]
[424288666,1780753845000,-1536.04360648,0.00019274,2]
[424288644,1780753845000,-200.0,0.00019,2]
[424288669,1780753845000,-200.0,0.00019274,2]
[424288667,1780753845000,-745.65223615,0.00019274,2]
[424288677,1780753845000,-315.0,0.000193,2]
[424288681,1780753845000,-1878.97977684,0.000195,2]
[424288675,1780753845000,-1878.97977684,0.000193,2]
[424288674,1780753845000,-1151.34550738,0.000193,2]
[424288673,1780753845000,-10272.10520532,0.00019274,2]
[424288680,1780753845000,-1151.34550738,0.000195,2]
[424288678,1780753845000,-10000.0,0.000194,2]
[424288671,1780753845000,-225.18697532,0.00019274,2]
[424288682,1780753845000,-1292.16484347,0.000195,2]
[424288672,1780753845000,-200.0,0.00019274,2]
[424288662,1780753845000,-2236.95670847,0.00019274,2]
[424288676,1780753845000,-1292.16484347,0.000193,2]
[424288757,1780753846000,-500.0,0.0002037,2]
[424288758,1780753846000,-242.15909246,0.0002037,2]
[424288754,1780753846000,-1651.81367706,0.0002037,2]
[424288751,1780753846000,-242.15909246,0.0002037,2]
[424288753,1780753846000,-151.0,0.0002037,2]
[424288750,1780753846000,-2405.55389863,0.0002037,2]
[424288752,1780753846000,-201.93286098,0.0002037,2]
[424288743,1780753846000,-1242.38,0.000203,2]
[424288746,1780753846000,-323.68682015,0.0002037,2]
[424288756,1780753846000,-200.0,0.0002037,2]
[424288749,1780753846000,-151.0,0.0002037,2]
[424288748,1780753846000,-242.15909246,0.0002037,2]
[424288755,1780753846000,-801.85129954,0.0002037,2]
[424288763,1780753846000,-309.0,0.000204,2]
[424288765,1780753846000,-5924.36289453,0.00020486,2]
[424288762,1780753846000,-1995.41551638,0.000204,2]
[424288764,1780753846000,-1000.0,0.000204,2]
[424288760,1780753846000,-11046.30350254,0.0002037,2]
[424288761,1780753846000,-4204.8,0.00020381,2]
[424288767,1780753846000,-197.53676198,0.00020496,2]
[424288777,1780753846000,-306.29067534,0.00020807,2]
[424288779,1780753846000,-689.76,0.00020807,2]
[424288768,1780753846000,-150.0,0.0002058,2]
[424288766,1780753846000,-41658.39331294,0.00020496,2]
[424288771,1780753846000,-150.44842242,0.0002058,2]
[424288745,1780753846000,-2000.0,0.00020326,7]
[424288759,1780753846000,-200.0,0.0002037,2]
[424288747,1780753846000,-200.0,0.0002037,2]
[424288723,1780753846000,-1747.0,0.0002,2]
[424288740,1780753846000,-169.0,0.00020089,2]
[424288717,1780753846000,-785.0,0.0002,2]
[424288715,1780753846000,-1995.41551638,0.0002,2]
[424288716,1780753846000,-663.0,0.0002,2]
[424288719,1780753846000,-766.0,0.0002,2]
[424288726,1780753846000,-14184.8,0.0002,2]
[424288718,1780753846000,-4263.0,0.0002,2]
[424288730,1780753846000,-200.0,0.0002,2]
[424288728,1780753846000,-1563.53,0.0002,2]
[424288727,1780753846000,-936.0,0.0002,2]
[424288725,1780753846000,-408.0,0.0002,2]
[424288729,1780753846000,-1092.0,0.0002,2]
[424288724,1780753846000,-400.0,0.0002,2]
[424288744,1780753846000,-250.0,0.00020303,2]
[424288722,1780753846000,-801.0,0.0002,2]
[424288721,1780753846000,-1042.263907,0.0002,2]
[424288731,1780753846000,-675.0,0.0002,2]
[424288742,1780753846000,-1995.41551638,0.000202,2]
[424288734,1780753846000,-500.0,0.00020085,2]
[424288736,1780753846000,-150.0,0.00020089,2]
[424288733,1780753846000,-966.22,0.00020054,2]
[424288735,1780753846000,-150.0,0.00020089,2]
[424288732,1780753846000,-2972.0,0.0002,2]
[424288737,1780753846000,-150.0,0.00020089,2]
[424288739,1780753846000,-150.0,0.00020089,2]
[424288738,1780753846000,-150.0,0.00020089,2]
[424288741,1780753846000,-2322.0,0.00020127,2]
[424288720,1780753846000,-1317.0,0.0002,2]
[424288774,1780753846000,-718.0,0.00020706,7]
[424288770,1780753846000,-150.0,0.0002058,2]
[424288773,1780753846000,-500.0,0.0002063,2]
[424288812,1780753846000,-434.03805854,0.00021,2]
[424288814,1780753846000,-2302.83992686,0.00021,2]
[424288811,1780753846000,-455.0,0.00021,2]
[424288815,1780753846000,-1995.41551638,0.00021,2]
[424288810,1780753846000,-781.0,0.00021,2]
[424288816,1780753846000,-663.0,0.00021,2]
[424288818,1780753846000,-4263.0,0.00021,2]
[424288822,1780753846000,-15000.0,0.00021,2]
[424288829,1780753846000,-2972.0,0.00021,2]
[424288828,1780753846000,-675.0,0.00021,2]
[424288817,1780753846000,-785.0,0.00021,2]
[424288819,1780753846000,-1042.263907,0.00021,2]
[424288820,1780753846000,-801.0,0.00021,2]
[424288824,1780753846000,-4583.68479128,0.00021,2]
[424288823,1780753846000,-6111.0,0.00021,2]
[424288826,1780753846000,-936.0,0.00021,2]
[424288827,1780753846000,-1092.0,0.00021,2]
[424288825,1780753846000,-408.0,0.00021,2]
[424288831,1780753846000,-500.0,0.00021176,2]
[424288830,1780753846000,-479.43,0.000211,7]
[424288834,1780753846000,-932.12,0.00021369,2]
[424288833,1780753846000,-1995.41551638,0.000212,2]
[424288832,1780753846000,-434.03805854,0.000212,2]
[424288836,1780753846000,-434.03805854,0.000214,2]
[424288837,1780753846000,-1995.41551638,0.000214,2]
[424288835,1780753846000,-1708.05,0.0002137,2]
[424288772,1780753846000,-1995.41551638,0.000206,2]
[424288809,1780753846000,-205.0,0.00021,2]
[424288813,1780753846000,-2857.0,0.00021,2]
[424288821,1780753846000,-1747.0,0.00021,2]
[424288806,1780753846000,-291.37468317,0.00020988,2]
[424288775,1780753846000,-1995.41551638,0.000208,2]
[424288804,1780753846000,-11455.01673214,0.00020918,2]
[424288780,1780753846000,-552.93,0.00020807,2]
[424288782,1780753846000,-225.18697532,0.00020916,2]
[424288783,1780753846000,-160.0,0.00020916,2]
[424288784,1780753846000,-599.60298507,0.00020917,2]
[424288791,1780753846000,-200.0,0.00020918,2]
[424288785,1780753846000,-747.80937859,0.00020917,2]
[424288789,1780753846000,-624.42,0.00020918,2]
[424288786,1780753846000,-505.25,0.00020918,2]
[424288790,1780753846000,-335.66323249,0.00020918,2]
[424288788,1780753846000,-818.87,0.00020918,2]
[424288793,1780753846000,-151.0,0.00020918,2]
[424288792,1780753846000,-251.11897888,0.00020918,2]
[424288781,1780753846000,-162.380719,0.00020916,2]
[424288794,1780753846000,-2494.55939288,0.00020918,2]
[424288808,1780753846000,-500.0,0.00020999,2]
[424288805,1780753846000,-150.0,0.00020946,2]
[424288803,1780753846000,-200.0,0.00020918,2]
[424288799,1780753846000,-831.51979762,0.00020918,2]
[424288801,1780753846000,-500.0,0.00020918,2]
[424288800,1780753846000,-200.0,0.00020918,2]
[424288807,1780753846000,-180.0,0.00020988,2]
[424288795,1780753846000,-251.11897888,0.00020918,2]
[424288798,1780753846000,-151.0,0.00020918,2]
[424288797,1780753846000,-1712.93078311,0.00020918,2]
[424288796,1780753846000,-209.40437684,0.00020918,2]
[424288802,1780753846000,-251.11897888,0.00020918,2]
[424288886,1780753847000,-663.0,0.00022,2]
[424288884,1780753847000,-455.0,0.00022,2]
[424288877,1780753847000,-6952.99847296,0.00021991,2]
[424288881,1780753847000,-5000.0,0.00021991,2]
[424288875,1780753847000,-200.0,0.00021918,2]
[424288874,1780753847000,-200.0,0.00021918,2]
[424288880,1780753847000,-5000.0,0.00021991,2]
[424288873,1780753847000,-200.0,0.00021918,2]
[424288876,1780753847000,-200.0,0.00021918,2]
[424288879,1780753847000,-5000.0,0.00021991,2]
[424288882,1780753847000,-205.0,0.00022,2]
[424288871,1780753847000,-800.0,0.00021918,2]
[424288878,1780753847000,-5000.0,0.00021991,2]
[424288888,1780753847000,-4263.0,0.00022,2]
[424288908,1780753847000,-151.0,0.00022014,2]
[424288889,1780753847000,-1042.263907,0.00022,2]
[424288885,1780753847000,-2857.0,0.00022,2]
[424288890,1780753847000,-801.0,0.00022,2]
[424288892,1780753847000,-450.0,0.00022,2]
[424288894,1780753847000,-1242.38,0.00022,7]
[424288891,1780753847000,-1747.0,0.00022,2]
[424288895,1780753847000,-936.0,0.00022,2]
[424288893,1780753847000,-408.0,0.00022,2]
[424288896,1780753847000,-3041.2,0.00022,2]
[424288898,1780753847000,-675.0,0.00022,2]
[424288897,1780753847000,-1092.0,0.00022,2]
[424288909,1780753847000,-894.19061325,0.00022014,2]
[424288899,1780753847000,-2972.0,0.00022,2]
[424288883,1780753847000,-781.0,0.00022,2]
[424288887,1780753847000,-785.0,0.00022,2]
[424288872,1780753847000,-200.0,0.00021918,2]
[424288840,1780753847000,-260.4103811,0.00021466,2]
[424288864,1780753847000,-800.0,0.00021918,2]
[424288838,1780753847000,-348.0827721,0.00021466,2]
[424288841,1780753847000,-151.0,0.00021466,2]
[424288839,1780753847000,-200.0,0.00021466,2]
[424288842,1780753847000,-2586.85809042,0.00021466,2]
[424288843,1780753847000,-260.4103811,0.00021466,2]
[424288856,1780753847000,-500.0,0.00021721,2]
[424288845,1780753847000,-1776.30922209,0.00021466,2]
[424288855,1780753847000,-1995.41551638,0.000217,2]
[424288844,1780753847000,-217.15233878,0.00021466,2]
[424288846,1780753847000,-151.0,0.00021466,2]
[424288848,1780753847000,-200.0,0.00021466,2]
[424288847,1780753847000,-862.28603014,0.00021466,2]
[424288850,1780753847000,-260.4103811,0.00021466,2]
[424288853,1780753847000,-434.03805854,0.000216,2]
[424288869,1780753847000,-800.0,0.00021918,2]
[424288851,1780753847000,-200.0,0.00021466,2]
[424288852,1780753847000,-11878.85235123,0.00021466,2]
[424288854,1780753847000,-14184.8,0.00021694,2]
[424288858,1780753847000,-1995.41551638,0.000219,2]
[424288859,1780753847000,-5000.0,0.00021918,2]
[424288857,1780753847000,-434.03805854,0.000219,2]
[424288861,1780753847000,-800.0,0.00021918,2]
[424288860,1780753847000,-150.0,0.00021918,2]
[424288866,1780753847000,-800.0,0.00021918,2]
[424288862,1780753847000,-800.0,0.00021918,2]
[424288868,1780753847000,-800.0,0.00021918,2]
[424288863,1780753847000,-659.15953549,0.00021918,2]
[424288870,1780753847000,-800.0,0.00021918,2]
[424288867,1780753847000,-800.0,0.00021918,2]
[424288865,1780753847000,-800.0,0.00021918,2]
[424288849,1780753847000,-500.0,0.00021466,2]
[424288904,1780753847000,-2682.57183977,0.00022014,2]
[424288900,1780753847000,-360.96183466,0.00022014,2]
[424288905,1780753847000,-270.0455652,0.00022014,2]
[424288941,1780753847000,-325.38,0.00022466,2]
[424288938,1780753847000,-284.89,0.00022466,2]
[424288949,1780753847000,-200.0,0.00022562,2]
[424288942,1780753847000,-212.57,0.00022466,2]
[424288947,1780753847000,-200.0,0.00022531,2]
[424288948,1780753847000,-374.31742255,0.00022562,2]
[424288945,1780753847000,-150.0,0.00022473,2]
[424288944,1780753847000,-150.0,0.00022473,2]
[424288943,1780753847000,-259.0,0.00022472,2]
[424288946,1780753847000,-175.0,0.00022473,2]
[424288951,1780753847000,-151.0,0.00022562,2]
[424288961,1780753847000,-200.0,0.00022562,2]
[424288962,1780753847000,-12774.14957409,0.00022562,2]
[424288954,1780753847000,-233.5188934,0.00022562,2]
[424288950,1780753847000,-280.03725111,0.00022562,2]
[424288952,1780753847000,-2781.82699784,0.00022562,2]
[424288953,1780753847000,-280.03725111,0.00022562,2]
[424288958,1780753847000,-200.0,0.00022562,2]
[424288957,1780753847000,-927.27566594,0.00022562,2]
[424288956,1780753847000,-151.0,0.00022562,2]
[424288959,1780753847000,-500.0,0.00022562,2]
[424288955,1780753847000,-1910.18787185,0.00022562,2]
[424288960,1780753847000,-280.03725111,0.00022562,2]
[424288963,1780753847000,-168.33,0.00022603,2]
[424288964,1780753847000,-317.0,0.00022667,2]
[424288967,1780753847000,-150.0,0.0002268,2]
[424288965,1780753847000,-150.0,0.0002268,2]
[424288966,1780753847000,-150.0,0.0002268,2]
[424288907,1780753847000,-1842.0326633,0.00022014,2]
[424288939,1780753847000,-1688.2,0.00022466,2]
[424288940,1780753847000,-340.15,0.00022466,2]
[424288968,1780753847000,-150.0,0.0002268,2]
[424288932,1780753847000,-292.100373,0.00022407,2]
[424288902,1780753847000,-270.0455652,0.00022014,2]
[424288901,1780753847000,-200.0,0.00022014,2]
[424288903,1780753847000,-151.0,0.00022014,2]
[424288906,1780753847000,-225.18697532,0.00022014,2]
[424288910,1780753847000,-200.0,0.00022014,2]
[424288911,1780753847000,-500.0,0.00022014,2]
[424288912,1780753847000,-270.0455652,0.00022014,2]
[424288913,1780753847000,-200.0,0.00022014,2]
[424288920,1780753847000,-500.0,0.00022267,2]
[424288919,1780753847000,-152.81900171,0.0002225,7]
[424288915,1780753847000,-200.0,0.00022016,2]
[424288914,1780753847000,-12318.36988822,0.00022014,2]
[424288922,1780753847000,-233.5188934,0.00022285,2]
[424288921,1780753847000,-168.3888056,0.00022285,2]
[424288918,1780753847000,-1227.0,0.00022129,2]
[424288917,1780753847000,-1274.0,0.00022129,2]
[424288930,1780753847000,-229.51077033,0.00022395,2]
[424288916,1780753847000,-272.0,0.00022125,2]
[424288929,1780753847000,-229.51077033,0.00022395,2]
[424288931,1780753847000,-298.5,0.00022396,2]
[424288933,1780753847000,-292.100373,0.00022407,2]
[424288928,1780753847000,-500.0,0.00022392,2]
[424288927,1780753847000,-2017.01286119,0.00022392,2]
[424288937,1780753847000,-1570.68,0.00022466,2]
[424288925,1780753847000,-275.9353994,0.00022352,2]
[424288936,1780753847000,-1835.39,0.00022466,2]
[424288923,1780753847000,-187.4024643,0.00022285,2]
[424288935,1780753847000,-552.93,0.00022465,2]
[424288924,1780753847000,-253.25466494,0.00022352,2]
[424288934,1780753847000,-689.76,0.00022465,2]
[424288926,1780753847000,-4204.8,0.00022353,2]
[424289011,1780753848000,-388.16716718,0.0002311,2]
[424289010,1780753848000,-300.0,0.000231,10]
[424289009,1780753848000,-898.02,0.00023013,7]
[424289006,1780753848000,-675.0,0.00023,2]
[424289008,1780753848000,-56147.0,0.00023,2]
[424289015,1780753848000,-2884.75459676,0.0002311,2]
[424289007,1780753848000,-2972.0,0.00023,2]
[424289003,1780753848000,-200.0,0.00023,10]
[424289014,1780753848000,-290.3986294,0.0002311,2]
[424289004,1780753848000,-936.0,0.00023,2]
[424289012,1780753848000,-200.0,0.0002311,2]
[424289005,1780753848000,-1092.0,0.00023,2]
[424288996,1780753848000,-4263.0,0.00023,2]
[424289039,1780753848000,-2000.0,0.00023206,2]
[424289016,1780753848000,-290.3986294,0.0002311,2]
[424289019,1780753848000,-151.0,0.0002311,2]
[424289017,1780753848000,-242.15909246,0.0002311,2]
[424289018,1780753848000,-1980.8648231,0.0002311,2]
[424289020,1780753848000,-961.58486558,0.0002311,2]
[424289027,1780753848000,-550.0,0.0002317,2]
[424289023,1780753848000,-290.3986294,0.0002311,2]
[424289021,1780753848000,-200.0,0.0002311,2]
[424289024,1780753848000,-200.0,0.0002311,2]
[424289022,1780753848000,-500.0,0.0002311,2]
[424289026,1780753848000,-550.0,0.0002317,2]
[424289025,1780753848000,-13246.79310833,0.0002311,2]
[424289029,1780753848000,-550.0,0.0002317,2]
[424289001,1780753848000,-1747.0,0.00023,2]
[424289013,1780753848000,-151.0,0.0002311,2]
[424288999,1780753848000,-1042.263907,0.00023,2]
[424288984,1780753848000,-500.0,0.0002297,2]
[424288998,1780753848000,-911.0,0.00023,2]
[424289033,1780753848000,-550.0,0.0002317,2]
[424288975,1780753848000,-500.0,0.0002269,2]
[424288974,1780753848000,-5924.36289453,0.00022684,2]
[424288970,1780753848000,-150.0,0.0002268,2]
[424288972,1780753848000,-150.0,0.0002268,2]
[424288973,1780753848000,-178.0,0.0002268,2]
[424288969,1780753848000,-150.0,0.0002268,2]
[424288971,1780753848000,-150.0,0.0002268,2]
[424288977,1780753848000,-327.0,0.00022788,2]
[424288988,1780753848000,-818.87,0.00022999,2]
[424288979,1780753848000,-155.3215084,0.0002284,2]
[424288976,1780753848000,-41658.39331294,0.00022691,2]
[424288983,1780753848000,-700.0,0.0002297,2]
[424289000,1780753848000,-801.0,0.00023,2]
[424288986,1780753848000,-500.0,0.0002297,2]
[424288982,1780753848000,-700.0,0.0002297,2]
[424288981,1780753848000,-700.0,0.0002297,2]
[424288978,1780753848000,-500.0,0.00022812,2]
[424288980,1780753848000,-1860.41,0.00022901,2]
[424288989,1780753848000,-624.42,0.00022999,2]
[424288993,1780753848000,-2857.0,0.00023,2]
[424288991,1780753848000,-781.0,0.00023,2]
[424288994,1780753848000,-663.0,0.00023,2]
[424288995,1780753848000,-785.0,0.00023,2]
[424288992,1780753848000,-455.0,0.00023,2]
[424288990,1780753848000,-205.0,0.00023,2]
[424288997,1780753848000,-213.85,0.00023,2]
[424289002,1780753848000,-408.0,0.00023,2]
[424288985,1780753848000,-500.0,0.0002297,2]
[424289032,1780753848000,-550.0,0.0002317,2]
[424288987,1780753848000,-505.25,0.00022999,2]
[424289030,1780753848000,-550.0,0.0002317,2]
[424289067,1780753848000,-1000.0,0.00023206,2]
[424289077,1780753848000,-1000.0,0.00023206,2]
[424289071,1780753848000,-1000.0,0.00023206,2]
[424289076,1780753848000,-1000.0,0.00023206,2]
[424289068,1780753848000,-1000.0,0.00023206,2]
[424289066,1780753848000,-1000.0,0.00023206,2]
[424289074,1780753848000,-1000.0,0.00023206,2]
[424289075,1780753848000,-1000.0,0.00023206,2]
[424289073,1780753848000,-1000.0,0.00023206,2]
[424289069,1780753848000,-1000.0,0.00023206,2]
[424289070,1780753848000,-1000.0,0.00023206,2]
[424289072,1780753848000,-1000.0,0.00023206,2]
[424289079,1780753848000,-1000.0,0.00023206,2]
[424289065,1780753848000,-1000.0,0.00023206,2]
[424289078,1780753848000,-1000.0,0.00023206,2]
[424289080,1780753848000,-1000.0,0.00023206,2]
[424289081,1780753848000,-1000.0,0.00023206,2]
[424289082,1780753848000,-1000.0,0.00023206,2]
[424289086,1780753848000,-200.0,0.00023304,2]
[424289094,1780753848000,-174.61919141,0.00023654,2]
[424289084,1780753848000,-2371.93,0.00023294,3]
[424289085,1780753848000,-187.94,0.00023294,3]